Cogmind - Beta 13 --- EXPLORER MODE // 2024.07.06 @ 20:31:55 Player: DigDiggieDig Result: Core destroyed Performance ------------- Evolutions (2) 1000 Regions Visited (3) 600 Robots Destroyed (28) 140 Value Destroyed (914) 914 Prototype IDs (0) 0 Alien Tech Used (0) 0 Bonus (0) 0 TOTAL SCORE: 2654 Bonus ------- None Cogmind --------- Core Integrity 0/550 Matter 122/300 Energy 85/100 System Corruption 0% Temperature Critical (613) Movement Core (550) Ox10 Location -8/Materials Parts ------- > --- POWER (3) -------- (None) > --- PROPULSION (3) --- (None) > --- UTILITY (3) ------ Medium Storage Unit Large Storage Unit Propulsion Shielding > --- WEAPON (3) ------- Assault Rifle > --- INVENTORY (15) --- Aluminum Leg Small Storage Unit Improved Terrain Scanner Seismic Detector Tractor Beam Small Laser Assault Rifle Peak State ------------ > --- POWER ------------ Light Ion Engine Nuclear Core Light Angular Momentum Engine > --- PROPULSION ------- Aluminum Leg Improved Hover Unit > --- UTILITY ---------- Large Storage Unit Sensor Array Core Shielding > --- WEAPON ----------- Beam Rifle Light EM Pulse Cannon Autogun > --- INVENTORY -------- Aluminum Leg Small Storage Unit Medium Storage Unit Improved Terrain Scanner Seismic Detector Propulsion Shielding Tractor Beam Small Laser Particle Gun Assault Rifle Assault Rifle [Rating: 22] Favorites ----------- Power Light Ion Engine Engine Light Ion Engine Power Core Nuclear Core Propulsion Aluminum Leg Leg Aluminum Leg Hover Unit Improved Hover Unit Utility Core Shielding Device Sensor Array Storage Medium Storage Unit Protection Core Shielding Weapon Assault Rifle Energy Gun Beam Rifle Energy Cannon Light EM Pulse Cannon Ballistic Gun Assault Rifle Build | -11 -10 -9 -8 ------- Run | Yrd Mat Mat Mat Slots Evolved 5 | . 1 2 2 Power 2 | . . 1 1 Propulsion 1 | . . . 1 Utility 1 | . 1 . . Weapon 1 | . . 1 . Parts Attached 29 | 7 3 6 13 Power 5 | 1 . 1 3 Engine 4 | 1 . 1 2 Core 1 | . . . 1 Reactor . | . . . . Propulsion 8 | 2 1 1 4 Treads . | . . . . Leg 7 | 2 1 1 3 Wheel . | . . . . Hover 1 | . . . 1 Flight . | . . . . Utility 7 | 2 2 1 2 Device 2 | . 2 . . Storage 3 | 1 . 1 1 Processor . | . . . . Hackware . | . . . . Protection 2 | 1 . . 1 Artifact . | . . . . Weapon 9 | 2 . 3 4 Energy Gun 3 | . . 2 1 Energy Cannon 1 | . . . 1 Ballistic Gun 5 | 2 . 1 2 Ballistic Cannon . | . . . . Launcher . | . . . . Special Weapon . | . . . . Impact Weapon . | . . . . Slashing Weapon . | . . . . Piercing Weapon . | . . . . Special Melee Weapon . | . . . . Unidentified Prototypes . | . . . . Parts Lost 14 | . . . 14 Power 4 | . . . 4 Propulsion 4 | . . . 4 Utility 2 | . . . 2 Weapon 4 | . . . 4 Highest Loss Streak 11 | . . . 11 To Critical Strikes . | . . . . Average Slot Usage (%) 93 | . 99 97 85 Engine 14 | . 12 18 13 Core 2 | . . . 7 Leg 18 | . 24 20 13 Device 9 | . 12 10 7 Storage 9 | . 12 10 8 Protection 9 | . 12 10 7 Energy Gun 4 | . . 4 8 Ballistic Gun 20 | . 25 24 13 Naked Turns . | . . . . Heaviest Build 51 | 18 19 38 51 Greatest Support 30 | 20 20 20 30 Greatest Overweight (x) 13 | 4 1 2 13 Average Overweight (x) . | . . . 2 Largest Inventory Capacity 15 | 10 10 15 15 Average Capacity 12 | 9 10 10 15 Most Carried 12 | 8 8 9 12 Average Carried 7 | 5 6 7 9 Final Capacity 15 | 10 10 15 15 Final Carried 9 | 8 6 9 7 Class Distribution -------------------- 59% | Hacker-Skirmisher 38% | Hacker-Mutant Dominant Class ---------------- Hacker-Mutant | -10/Materials Hacker-Skirmisher | -9/Materials Hacker-Skirmisher | -8/Materials Resources | -11 -10 -9 -8 ----------- Run | Yrd Mat Mat Mat Matter Collected 1085 | 322 123 283 357 Remotely . | . . . . Salvage Created 1168 | 128 107 356 577 Parts 70 | 10 9 20 31 Haulers Intercepted . | . . . . Recyclers Shooed . | . . . . Parts Field Recycled . | . . . . Retrieved Matter . | . . . . Parts Self-Destructed . | . . . . Prevented . | . . . . Kills | -11 -10 -9 -8 ------- Run | Yrd Mat Mat Mat Combat Hostiles Destroyed 21 | . 4 7 10 Guns 19 | . 4 7 8 Cannons 2 | . . . 2 Classes Destroyed 9 | 2 2 2 3 Builder 1 | . . . 1 Tunneler 3 | 3 . . . Recycler 1 | 1 . . . Watcher 2 | . . 2 . Swarmer 2 | . 2 . . Grunt 13 | . 2 4 7 Brawler 1 | . . . 1 Sentry 4 | . . 3 1 Hunter 1 | . . . 1 Best Kill Streak 4 | 3 2 4 4 Combat Bots Only 4 | . 2 2 4 Max Kills in Single Turn 2 | 1 2 2 1 Gunslinging 1 | . 1 . . Exploded . | . . . . Melee . | . . . . Uniques/NPCs Destroyed . | . . . . Combat | -11 -10 -9 -8 -------- Run | Yrd Mat Mat Mat Hostile Shots Fired 192 | . 33 37 122 Missed 39 | . 13 14 12 Damage Taken 1779 | . 147 252 1380 Core 663 | . 49 29 585 Absorbed by Shields . | . . . . Redirected to Shielding 62 | . 10 4 48 Ignored by Resistances 894 | . 92 148 654 Core Remaining (%) 90 | 100 80 92 . Volleys Fired 96 | 11 19 30 36 Largest 3 | 2 2 3 3 Hottest 135 | 40 40 99 135 Shots Fired 242 | 22 38 82 100 Gun 235 | 22 38 82 93 Cannon 7 | . . . 7 Launcher . | . . . . Special . | . . . . Kinetic 187 | 22 38 70 57 Thermal 48 | . . 12 36 Explosive . | . . . . Electromagnetic 7 | . . . 7 Robot Hit Streak 25 | 5 25 19 24 Robot Miss Streak 4 | 2 3 4 2 Penetration Max . | . . . . Secondary Targets 4 | . 2 . 2 Max Gunslinging Chain 1 | . 1 . 1 Shots Hit Robots 172 | 11 28 55 78 Core Hits 57 | 5 8 16 28 Critical Kills . | . . . . Critical Parts Destroyed 1 | 1 . . . Critical Strikes 7 | 1 . . 6 Burn 6 | . . . 6 Destroy 1 | 1 . . . Melee Attacks . | . . . . Impact . | . . . . Slashing . | . . . . Piercing . | . . . . Sneak Attacks . | . . . . Combat Hostiles . | . . . . Follow-up Attacks . | . . . . Damage Inflicted 2354 | 148 332 735 1139 Guns 2234 | 148 332 735 1019 Cannons 117 | . . . 117 Explosions . | . . . . Melee . | . . . . Ramming 3 | . . . 3 Kinetic 1708 | 148 332 640 588 Thermal 526 | . . 95 431 Explosive . | . . . . Electromagnetic 117 | . . . 117 Impact . | . . . . Slashing . | . . . . Piercing . | . . . . Highest Corruption . | . . . . Average Corruption . | . . . . Corruption Purged . | . . . . Corruption Blocked . | . . . . Overload Shots . | . . . . Overflow Damage . | . . . . Projectiles . | . . . . Explosions . | . . . . Melee . | . . . . Knockbacks . | . . . . Impact . | . . . . Kinetic . | . . . . Secondary . | . . . . Self-Inflicted Damage 1 | . . . 1 Shots . | . . . . Rammed 5 | . . . 5 Targets Rammed 5 | . . . 5 Kicked . | . . . . Crushed . | . . . . Highest Temperature 640 | . 8 198 640 Average Temperature 210 | . 3 53 303 Received Heat Transfer 1158 | . 123 117 918 Effects 39 | . . . 39 Shutdowns 15 | . . . 15 Energy Bleed 1 | . . . 1 Interference 5 | . . . 5 Matter Decay 9 | . . . 9 Short Circuit 1 | . . . 1 Damage (minor) 2 | . . . 2 Damage (major) 2 | . . . 2 Damage (core) 4 | . . . 4 Siege Activations . | . . . . Robots Corrupted . | . . . . Combat Hostiles . | . . . . Parts Fried . | . . . . Impact Corruptions . | . . . . Robots Melted . | . . . . Combat Hostiles . | . . . . Parts Melted 3 | . . 1 2 Heat Transferred 1741 | . . 224 1517 Parts Sabotaged . | . . . . Parts Stolen . | . . . . Parts Stripped . | . . . . Power Chain Reactions . | . . . . Alert | -11 -10 -9 -8 ------- Run | Yrd Mat Mat Mat Peak Influence 263 | 20 139 263 106 Initial 9 | . 9 . 1 Average 55 | 9 34 109 39 Maximum Alert Level 1 | . . 1 . Low Security (%) 93 | 100 100 76 100 Level 1 6 | . . 23 . Level 2 . | . . . . Level 3 . | . . . . Level 4 . | . . . . Level 5 . | . . . . High Security . | . . . . Max Security . | . . . . Squads Dispatched 4 | . . 1 3 Investigation 1 | . . . 1 Extermination . | . . . . Reinforcement 2 | . . 1 1 Assault . | . . . . Garrison 1 | . . . 1 Intercept . | . . . . Searches Triggered . | . . . . Construction Impeded . | . . . . Haulers Reinforced . | . . . . Active Scanning Responses . | . . . . Cargo Convoy Interrupts . | . . . . Stealth | -11 -10 -9 -8 --------- Run | Yrd Mat Mat Mat Distress Signals 4 | . 1 1 2 Communications Jammed . | . . . . Distress Signals . | . . . . Times Spotted 40 | . 6 15 19 Peak Tracking Total 8 | . 3 5 8 Tactical Retreats . | . . . . Traps | -11 -10 -9 -8 ------- Run | Yrd Mat Mat Mat Traps Triggered 1 | . 1 . . Indirectly . | . . . . Trap Hack Attempts . | . . . . Triggered . | . . . . Disarmed . | . . . . Reprogrammed . | . . . . Reused . | . . . . Traps Extracted . | . . . . Installed . | . . . . Triggered . | . . . . Machines | -11 -10 -9 -8 ---------- Run | Yrd Mat Mat Mat Machines Disabled 1 | . . . 1 Max in Single Turn 1 | . . . 1 Machines Repaired . | . . . . Machines Dismantled . | . . . . Machines Sabotaged . | . . . . Overloaded Fab Kills . | . . . . Hacking | -11 -10 -9 -8 --------- Run | Yrd Mat Mat Mat Machines Accessed 2 | . 1 . 1 Terminals . | . . . . Fabricators . | . . . . Repair Stations . | . . . . Recycling Units 2 | . 1 . 1 Scanalyzers . | . . . . Garrison Access . | . . . . Total Hacks 8 | . 5 . 3 Successful 8 | . 5 . 3 Failed . | . . . . Catastrophic . | . . . . Database Lockouts . | . . . . Manual . | . . . . Terminals . | . . . . Fabricators . | . . . . Repair Stations . | . . . . Recycling Units 8 | . 5 . 3 Scanalyzers . | . . . . Garrison Access . | . . . . Terminal Hacks . | . . . . Fabricator Hacks . | . . . . Repair Station Hacks . | . . . . Recycling Unit Hacks 8 | . 5 . 3 Recycle Component 3 | . 2 . 1 Process 2 | . 1 . 1 Retrieve Components 3 | . 2 . 1 Scanalyzer . | . . . . Garrison Access Hacks . | . . . . Unauthorized Hacks . | . . . . Terminals . | . . . . Fabricators . | . . . . Repair Stations . | . . . . Recycling Units . | . . . . Scanalyzers . | . . . . Garrison Access . | . . . . Data Cores Recovered . | . . . . Used . | . . . . Hacking Detections 2 | . 1 . 1 Full Trace Events 1 | . . . 1 Feedback Events . | . . . . Feedback Blocked . | . . . . Robot Schematics Acquired . | . . . . Robots Built . | . . . . Authchips . | . . . . Time . | . . . . Total Robot Build Rating . | . . . . Part Schematics Acquired . | . . . . Parts Built . | . . . . Authchips . | . . . . Time . | . . . . Total Part Build Rating . | . . . . Parts Repaired . | . . . . Time . | . . . . Parts Recycled 3 | . 2 . 1 Recycled Matter 154 | . 154 . . Retrieved Matter . | . . . . Retrieved Components 10 | . . . 10 Parts Scanalyzed . | . . . . Part Schematics Acquired . | . . . . Parts Damaged . | . . . . Bothacking | -11 -10 -9 -8 ------------ Run | Yrd Mat Mat Mat Used RIF Installer . | . . . . Robots Hacked . | . . . . Non-combat . | . . . . Combat . | . . . . Robot Hacks Applied . | . . . . Relay Couplers Released . | . . . . Fabnet Peak Effective % . | . . . . Robots Rewired . | . . . . Allies Hacked . | . . . . Hacks Repelled . | . . . . Allies | -11 -10 -9 -8 -------- Run | Yrd Mat Mat Mat Total Allies . | . . . . Largest Group . | . . . . Highest-Rated Group . | . . . . Highest-Rated Ally . | . . . . Total Orders . | . . . . Ally Attacks . | . . . . Total Damage . | . . . . Kills . | . . . . Allies Corrupted . | . . . . Allies Melted . | . . . . Intel | -11 -10 -9 -8 ------- Run | Yrd Mat Mat Mat Robot Analysis Total . | . . . . Derelict Logs Recovered . | . . . . Drone Launches . | . . . . Drone Recoveries . | . . . . Exploration | -11 -10 -9 -8 ------------- Run | Yrd Mat Mat Mat Turns Passed 1686 | 154 425 490 617 Spaces Moved 758 | 78 296 221 163 Core 30 | 29 . . 1 Treads . | . . . . Legs 705 | 49 296 221 139 Wheels . | . . . . Hover 23 | . . . 23 Flight . | . . . . Fastest Speed 50 | 50 120 120 190 Average Speed 172 | 127 121 174 286 Slowest Speed 700 | 250 190 260 700 Overloaded Moves . | . . . . Propulsion Burnouts . | . . . . Robots Hopped . | . . . . Cave-ins Triggered . | . . . . Exploration Rate (%) 16 | 6 29 18 13 Regions Visited 3 Branch Regions . Pre-discovered Areas . | . . . . Known Exits Taken 3 | 1 1 1 . Unknown Exits Taken . | . . . . Scrap Searched . | . . . . Spaces Dug . | . . . . Terrain Destroyed . | . . . . Melee . | . . . . Projectile . | . . . . AOE . | . . . . Terrain Rammed . | . . . . Walls Destroyed . | . . . . Machines Disabled . | . . . . Actions | -11 -10 -9 -8 --------- Run | Yrd Mat Mat Mat Total 926 | 110 325 262 229 Wait 5 | . 5 . . Move 755 | 77 295 220 163 Hop . | . . . . Pick Up 30 | 15 2 5 8 Fast Attach . | . . . . Attach 24 | 7 3 3 11 Detach 5 | . 1 1 3 Swap 5 | . . 3 2 Drop 1 | . . . 1 Fire 96 | 11 19 30 36 Melee . | . . . . Ram 5 | . . . 5 Kick . | . . . . Crush . | . . . . Escape Stasis . | . . . . Rewire . | . . . . Trap . | . . . . Miscellaneous . | . . . . Route ------- -11/Scrapyard -10/Materials (discovered 2 exits: *Mat / *Min) -9/Materials -8/Materials History --------- Turn | Location | Event 6 | -11/Scrapyard | Identified exit to Materials 6 | -11/Scrapyard | Discovered exit to Materials (range 16) 155 | -11/Scrapyard | Entered Materials 155 | -10/Materials | Evolved 1 slot: Utility x1 303 | -10/Materials | Build established: Hacker-Mutant 454 | -10/Materials | Identified exit to Mines 454 | -10/Materials | Discovered exit to Mines (range 15) 493 | -10/Materials | Identified exit to Materials 493 | -10/Materials | Discovered exit to Materials (range 9) 580 | -10/Materials | Entered another Materials area 580 | -9/Materials | Evolved 2 slots: Power x1, Weapon x1 906 | -9/Materials | Identified exit to Materials 906 | -9/Materials | Discovered exit to Materials (range 16) 958 | -9/Materials | Build established: Hacker-Skirmisher 1070 | -9/Materials | Entered another Materials area 1070 | -8/Materials | Evolved 2 slots: Power x1, Propulsion x1 1631 | -8/Materials | Garrison activated, responded to threat 1640 | -8/Materials | Core integrity fell below 50% 1677 | -8/Materials | Core integrity fell below 20% 1688 | -8/Materials | Core destroyed Last Messages --------------- K-01 Serf cleans the Terminal. Nuclear Core destroyed. G-47 Trooper destroyed. G-47 Trooper suffers critical hit (Burn). Particle Gun melted. G-47 Trooper destroyed. Switching to secondary target: G-47 Trooper. K-01 Serf collects debris. Overheating: Matter decay (-27). Autogun destroyed. Overheating: Particle Gun damaged (-1). Overheating: Med. Storage Unit damaged (-94). Overheating: Matter decay (-26). K-01 Serf collects debris. Y-45 Defender destroyed. Overheating: Matter decay (-22). Particle Gun destroyed. K-01 Serf cleans the Terminal. R-06 Scavenger collects Heat Sink. Overheating: Core damaged (-55). Map ----- +----------------------------------------------------+ | ?????????????????????????????????????????????????? | | ?????????????????????????????????????????????????? | | ?????????????????????????????????????????????????? | | ?????????????????????????????????????????????????? | | ?????????????????????????????????????????????????? | | ?????????????????????????????????????????????????? | | ?????????????????????????????????????????????????? | | ?????????????????????????????????????????????????? | | ?????????????????????????????????????????????????? | | ?????????????????????????????????????????????????? | | ?????????????????????????????????????????????????? | | ?????????????????????????????????????????????????? | | ?????????????????????????????????????????????????? | | ?????????????????????????????????????????????????? | | ?????????????????????????????????????????????????? | | ??????????????????????#######????????????????????? | | ?????????????????????? ????????####????????? | | ??????????????????????""" """????? ? #????????? | | ???????????????????????"" ""????? !! ##???????? | | ???????????????????????"" ""?????"" !* #???????? | | ???????????????????????? ?????""" #????????? | | ???????????????????????? ?????" " #????????? | | ??????????????????#######+##???=*% #????????? | | ??????????????????# # [=####k [ #????????? | | ??????????????????# # %Yggg/="T" !?????????? | | ??????????????????#!* r @g############??????????? | | ??????????????????#=|= # [#?????????????????????? | | ??????????????????#!"" # k #?????????????????????? | | ??????????????????#*Y" # #?????????????????????? | | ??????????????????# "" # #???????##????????????? | | ??????????????????#! # #?????? #????????????? | | ??????????????????###### #????? #????????????? | | ??????????????????????## ##?? ?????????????? | | ????????????##+######## #? """ ?????????????? | | ????????????# # """ ?????????????? | | ????????????# + ?????????????????? | | ????????????# #????????????????????? | | ????????????###+####### #????????????????????? | | ??????????????????????## ##????????????????????? | | ???????????????????????# #?????????????????????? | | ???????????????????????# #?????????????????????? | | ???????????????????????# #?????????????????????? | | ???????????????????????# #?????????????????????? | | ???????????????????????# #?????????????????????? | | ???????????????????????# #?????????????????????? | | ???????????????????????# #?????????????????????? | | ???????????????????????# #?????????????????????? | | ?????????????########### #?????????????????????? | | ?????????????# ## #?????????????????????? | | ?????????????# """ ## #?????????????????????? | +----------------------------------------------------+ Best States ------------- Heat Dissipation 31 Energy Generation 32 Energy Capacity 440 Matter Stores 300 Matter Capacity 300 Sight Range 16 Robot Scan Range 14 Terrain Scan Range 16 Terrain Scan Density 10 Resistance: KI 35 Resistance: TH 35 Resistance: EX 35 Resistance: EM 35 Resistance: I 35 Resistance: S 35 Resistance: P 35 Core Shielding 20 Propulsion Shielding 33 Evasion (%) 55 Offensive Hacking 20 Item Schematics ----------------- None Robot Schematics ------------------ None Fabricated ------------ Nothing Alien Tech Used ----------------- None Achievements -------------- None Challenges ------------ None Game ------ Seed DrainedAnalysisRouter Manual? 0 Play Time 00:28:41 Cumulative 5.5 hours Start 2024.07.06 @ 20:03:44 End 2024.07.06 @ 20:31:55 Sessions 1 Manual Loads 0 Difficulty Explorer Special Mode None Game No. 3 Rogue 0 Adventurer 0 Explorer 3 Win Type - Total 0 Types 0/0/0/0/0/0/0/0/0 Lore% 1 Gallery% 10 Achievement% 12 Wizard Run 0 Options --------- Layout 1 ASCII 0 Keyboard 0 Movement Mouse Keybinds 0 Fullscreen 1 Font 24/Smallcaps Map View 50x35 Zoom Use 0% Tactical HUD 0 Map Filters NONE Filters NONE Steam 1 RUN: 05e640a2-e47d-4844-8972-e461b5c768db